[Event "Austrian Bundesliga 2023-24"]
[Site "Austria"]
[Date "2024.03.24"]
[Round "11.31"]
[White "Dragnev, Valentin"]
[Black "Mamedyarov, Shakhriyar"]
[Result "1/2-1/2"]
[ECO "B40"]
[WhiteElo "2575"]
[BlackElo "2734"]
[Annotator "TA"]
[PlyCount "81"]
[EventDate "2023.10.21"]
[EventType "team-tourn"]
[EventCountry "AUT"]
[SourceTitle "playchess.com"]
[Source "ChessBase"]
[SourceQuality "1"]
[TimeControl "40/5400+30:1800+30"]

{[%evp 11,81,0,0,0,0,0,21,0,16,-31,3,8,38,48,50,38,68,57,93,84,91,82,85,87,139,132,139,127,135,134,135,108,95,95,104,100,95,106,111,49,34,44,74,0,0,0,63,50,56,0,8,0,7,1,2,0,54,18,62,0,63,0,0,0,9,-2,0,0,0,0,0,0]} 1. e4 {[%emt 0:00:04]} c5 {[%emt 0:00:11]} 2. Nf3 {[%emt 0:00:12]} e6 {[%emt 0:00:07]} 3. d4 {[%emt 0:00:43]} cxd4 {[%emt 0:00:07]} 4. Nxd4 {[%emt 0:00:05]} Nf6 {[%emt 0:00:10]} 5. Nc3 {[%emt 0:00:05]} Nc6 {[%emt 0:00:04]} 6. a3 {[%emt 0:09:07]} Be7 {[%emt 0:00:47]} 7. Nxc6 {[%emt 0:06:30]} bxc6 {[%emt 0:00:15]} 8. e5 {[%emt 0:00:06]} Nd5 {[%emt 0:00:04]} 9. Qg4 {[%emt 0:01:36]} g6 {[%emt 0:00:10]} 10. Nxd5 {[%emt 0:08:26]} (10. Qg3 $11 {might be stronger.}) 10... exd5 {[%emt 0:01:19]} (10... cxd5 {simplifies} 11. c3 Qb6 12. Qd4 Qxd4 13. cxd4 a5) 11. Bh6 {[%emt 0:01:55][%cal Bc1h6,Bh6g7,Bg7e5][%mdl 32]} Qb6 {[%emt 0:06:15]} 12. Bd3 $1 {[%emt 0:07:46]} d6 {[%emt 0:00:13]} 13. Qa4 {[%emt 0:02:17]} dxe5 {[%emt 0:03:59][%cal Oh8g8]} (13... Qxb2 $2 {loses.} 14. Qxc6+ Kd8 15. O-O $18) 14. Bg7 $1 {[%emt 0:00:22][%csl LRe5,LRh8]} Rg8 {[%emt 0:00:37]} 15. Bxe5 {[%emt 0:00:18]} Bd7 {[%emt 0:00:07]} 16. O-O {[%emt 0:03:27]} f6 {[%emt 0:07:29]} 17. Bc3 {[%emt 0:05:56] [#] aiming for Rfe1.} c5 {[%emt 0:10:08]} (17... g5 $142) 18. Qh4 $16 {[%emt 0:01:37]} h5 {[%emt 0:02:21]} 19. Rae1 {[%emt 0:15:02]} Kf7 {[%emt 0:00:09]} 20. Qf4 {[%emt 0:08:45]} Rae8 {[%emt 0:03:26]} 21. Qh6 {[%emt 0:05:45]} Rg7 {[%emt 0:00:11] Wards off Qh7} 22. Re3 {[%emt 0:02:24]} Bf8 {[%emt 0:07:30]} 23. Rxe8 {[%emt 0:01:14]} Bxe8 {[%emt 0:00:10]} 24. Re1 {[%emt 0:00:17][%cal Od3g6]} Bd7 {[%emt 0:05:17]} 25. Re3 {[%emt 0:03:11] White has more active pieces.} (25. b3 $16) 25... c4 $1 $14 {[%emt 0:08:01]} 26. Be2 {[%emt 0:00:31]} Rg8 {[%emt 0:08:28] [#] Inhibits Bf3.} 27. Qh7+ {[%emt 0:00:48]} (27. Qf4 $1 $16 {Bf3 is the strong threat.} Bc5 28. Bf3 Bxe3 29. Bxd5+ Kg7 30. fxe3) 27... Rg7 $1 $11 {[%emt 0:02:16]} 28. Qh6 {[%emt 0:00:02]} (28. Qh8 $11) 28... Rg8 $14 {[%emt 0:04:52]} 29. Qf4 {[%emt 0:01:06]} ({Of course not} 29. Qh7+ Rg7 30. Qh6) 29... Bc5 {[%emt 0:03:05]} 30. Rf3 {[%emt 0:01:38]} (30. Bf3 $1 $14 Bxe3 31. Bxd5+ Kg7 32. fxe3) 30... Bf5 $132 {[%emt 0:00:46][%cal Of7g7][%mdl 2048] Black is not keeping still} 31. h3 {[%emt 0:00:42]} Re8 {[%emt 0:04:35]} 32. Qd2 {[%emt 0:00:19][%cal Of3f5]} Qe6 {[%emt 0:11:28] And now ...d4 would win.} 33. Bf1 {[%emt 0:00:33][%cal Og2g4] Black must now prevent g4!} Rh8 {[%emt 0:06:20]} (33... Kg7 $11) 34. Bd4 {[%emt 0:09:28]} Qb6 {[%emt 0:00:42]} 35. Bc3 {[%emt 0:00:15]} (35. Rf4 {simplifies} Bxd4 36. Rxd4 Be6 37. b3) 35... Qe6 {[%emt 0:00:02]} 36. Qf4 {[%emt 0:01:21]} (36. b3 $14) 36... Qd6 {[%emt 0:03:01] The position is equal.} 37. Qd2 {[%emt 0:01:47]} ({Avoid the trap} 37. Bxc4 $2 dxc4 38. Qxc4+ Kg7 $19) 37... Kg7 {[%emt 0:01:56]} 38. Bd4 {[%emt 0:01:37]} Re8 {[%emt 0:00:54]} 39. Re3 {[%emt 0:01:11]} Rxe3 {[%emt 0:00:09]} 40. Qxe3 {[%emt 0:00:00]} Bb6 {[%emt 0:00:00]} 41. Bxb6 {[%emt 0:07:53] Weighted Error Value: White=0.15 (very precise) /Black=0.11 (very precise) .  Mistake:       	White=6     	Black=2      Inaccurate:     	White=1     	Black=6      OK:         	White=14    	Black=15     Best:        	White=1     	Black=2      Strong:       	White=1     	Black=2} 1/2-1/2

[Event "Austrian Bundesliga 2023-24"]
[Site "Austria"]
[Date "2024.03.24"]
[Round "11.32"]
[White "Vachier-Lagrave, Maxime"]
[Black "Blohberger, Felix"]
[Result "1-0"]
[ECO "D02"]
[WhiteElo "2728"]
[BlackElo "2531"]
[Annotator "TA"]
[PlyCount "67"]
[EventDate "2023.10.21"]
[EventType "team-tourn"]
[EventCountry "AUT"]
[SourceTitle "playchess.com"]
[Source "ChessBase"]
[SourceQuality "1"]
[TimeControl "40/5400+30:1800+30"]

{[%evp 9,67,14,27,21,27,-18,-18,-22,-12,-20,0,-38,0,-11,23,4,4,0,0,0,-1,0,2,0,0,0,0,0,0,0,0,0,0,0,0,-1,0,0,0,-24,0,0,0,0,0,0,0,0,0,0,0,0,0,0,0,0,516,502,3055,2768]} 1. d4 {[%emt 0:00:08]} Nf6 {[%emt 0:00:08]} 2. Nf3 {[%emt 0:00:04]} d5 {[%emt 0:00:07]} 3. Bf4 {[%emt 0:00:04]} Bf5 {[%emt 0:01:32]} 4. e3 {[%emt 0:01:07]} e6 {[%emt 0:00:16]} 5. c4 {[%emt 0:00:58]} Nbd7 {[%emt 0:05:08]} 6. Nc3 {[%emt 0:00:42]} Bb4 {[%emt 0:00:23]} 7. c5 {[%emt 0:05:38]} Ne4 {[%emt 0:10:48]} 8. Qb3 {[%emt 0:00:13] The position is equal.} Ba5 {[%emt 0:06:21]} 9. h3 {[%emt 0:09:55][%cal Oa1c1]} ({Much weaker is} 9. Qxb7 Nxc3 (9... Bxc3+ $2 10. bxc3 Qb8 11. c6 $18) 10. a3 Nb1+ 11. b4 Nxa3 $17) 9... O-O {[%emt 0:10:04]} 10. Be2 {[%emt 0:05:03][%cal Oa1c1]} c6 {[%emt 0:03:47]} 11. O-O {[%emt 0:01:14]} Qc8 {[%emt 0:12:38]} 12. Nxe4 {[%emt 0:09:04]} Bxe4 {[%emt 0:00:52]} 13. Ne5 {[%emt 0:01:52]} Nxe5 {[%emt 0:08:05]} 14. Bxe5 {[%emt 0:00:17]} Bc7 {[%emt 0:00:34]} 15. Bxc7 {[%emt 0:00:40]} Qxc7 {[%emt 0:00:07]} 16. Qc3 {[%emt 0:00:07]} Rfe8 {[%emt 0:04:42]} 17. f3 {[%emt 0:01:11][%cal Bf2f3,Bf3f4,Bf4f5,Bf5f6][%mdl 32]} Bg6 {[%emt 0:00:16]} 18. f4 {[%emt 0:00:05]} f6 {[%emt 0:04:24]} 19. b4 {[%emt 0:01:28]} e5 {[%emt 0:05:10]} 20. dxe5 {[%emt 0:00:22]} fxe5 {[%emt 0:00:07]} 21. f5 {[%emt 0:00:05]} Bf7 {[%emt 0:00:04]} 22. f6 {[%emt 0:01:22]} Bg6 {[%emt 0:00:51]} 23. e4 {[%emt 0:07:18]} d4 {[%emt 0:03:35]} 24. Qg3 {[%emt 0:09:11]} Rf8 {[%emt 0:01:18]} 25. Bc4+ {[%emt 0:04:35]} Kh8 {[%emt 0:00:07]} 26. fxg7+ {[%emt 0:00:16]} Qxg7 {[%emt 0:00:39]} 27. Qh4 {[%emt 0:00:04]} Rae8 {[%emt 0:06:10][%cal Of8f4]} 28. a4 {[%emt 0:00:45]} Rf4 {[%emt 0:04:57]} 29. Rxf4 {[%emt 0:00:17]} exf4 {[%emt 0:00:07]} 30. Bd3 {[%emt 0:04:47]} Bxe4 {[%emt 0:01:20]} 31. Bxe4 {[%emt 0:00:11]} d3 {[%emt 0:06:38]} 32. Re1 {[%emt 0:00:35]} Qd4+ $2 {[%emt 0:02:33][%mdl 8192]} (32... d2 $1 $11 33. Rd1 Qd4+ (33... Rxe4 $2 {loses.} 34. Rxd2 Qf7 35. Rd8+ Re8 36. Rxe8+ Qxe8 37. Qxf4 $18) 34. Kh2 (34. Qf2 Rxe4 35. Rxd2 Re1+ 36. Kh2 Qxf2 $17) 34... Rxe4 (34... Qxe4 35. Qf6+ Kg8 36. Qg5+ Kf8 37. Qf6+ Kg8 38. Rxd2 $16) 35. Rxd2 Qxd2 36. Qf6+ Kg8 37. Qg5+ Kh8 38. Qf6+ Kg8 39. Qg5+ Kh8 40. Qf6+) 33. Kh2 $18 {[%emt 0:00:04][%csl Ge4][%cal Rh4h7]} Rxe4 {[%emt 0:00:15] [#]} (33... Qg7 $142 34. Qxf4 Qe5) 34. Qh6 $1 {[%emt 0:00:05] Weighted Error Value: White=0.05 (flawless) /Black=0.24 (precise) .  Loses game:     	---       	Black=1      Mistake:       	---       	Black=1      Inaccurate:     	White=2     	Black=2      OK:         	White=17    	Black=9      Best:        	White=1     	Black=1      Strong:       	White=1     	---} 1-0

[Event "Austrian Bundesliga 2023-24"]
[Site "Austria"]
[Date "2024.03.24"]
[Round "11.33"]
[White "Peyrer, Konstantin"]
[Black "Vitiugov, Nikita"]
[Result "0-1"]
[ECO "D45"]
[WhiteElo "2434"]
[BlackElo "2688"]
[Annotator "TA"]
[PlyCount "64"]
[EventDate "2023.10.21"]
[EventType "team-tourn"]
[EventCountry "AUT"]
[SourceTitle "playchess.com"]
[Source "ChessBase"]
[SourceQuality "1"]
[TimeControl "40/5400+30:1800+30"]

{[%evp 11,64,16,25,-10,13,6,14,0,6,-21,-8,-6,0,0,0,-18,-21,-32,0,-12,0,6,2,0,0,0,0,-10,0,-35,-32,-27,-25,-30,-19,-118,-24,-31,-6,-81,-75,-78,-72,-69,-67,-66,-92,-88,-75,-98,-94,-110,-93,-411,-404]} 1. d4 {[%emt 0:00:06]} Nf6 {[%emt 0:00:20]} 2. c4 {[%emt 0:00:06]} e6 {[%emt 0:00:11]} 3. Nf3 {[%emt 0:00:22]} d5 {[%emt 0:00:26]} 4. Nc3 {[%emt 0:00:21]} c6 {[%emt 0:02:30]} 5. e3 {[%emt 0:01:08]} Be7 {[%emt 0:02:15]} 6. Qc2 {[%emt 0:05:00]} O-O {[%emt 0:04:01]} 7. Bd2 {[%emt 0:06:56]} c5 {[%emt 0:04:15]} 8. dxc5 {[%emt 0:04:01]} Bxc5 {[%emt 0:00:50]} 9. Rc1 {[%emt 0:03:52] The position is equal.} b6 {[%emt 0:05:51]} 10. Be2 {[%emt 0:06:14]} dxc4 {[%emt 0:10:55]} 11. Ne4 {[%emt 0:14:50]} Nbd7 {[%emt 0:00:45]} 12. Bxc4 {[%emt 0:10:08]} Bb7 {[%emt 0:01:40]} 13. Bd3 {[%emt 0:00:07]} Rc8 {[%emt 0:01:24] Threatens to win with ...Nxe4.} 14. Qb1 $1 {[%emt 0:01:11]} Qe7 {[%emt 0:06:29]} 15. O-O {[%emt 0:02:21]} Bb4 {[%emt 0:00:46]} 16. Bxb4 {[%emt 0:05:33]} Qxb4 {[%emt 0:00:22]} 17. a3 {[%emt 0:00:08]} Qe7 {[%emt 0:08:01]} 18. Rfd1 {[%emt 0:02:46]} g6 {[%emt 0:04:52]} 19. Nxf6+ {[%emt 0:08:24]} Nxf6 {[%emt 0:04:55]} 20. Ne5 {[%emt 0:01:13]} Rc5 {[%emt 0:02:57]} 21. Rxc5 {[%emt 0:00:06]} Qxc5 {[%emt 0:00:17]} 22. Nc4 {[%emt 0:00:09]} Rc8 {[%emt 0:03:19]} 23. Bf1 {[%emt 0:02:46] [#]} (23. Nd2 $11 {remains equal.}) 23... Bd5 {[%emt 0:02:16]} ({Black should play} 23... Be4 $1 $17 {[%cal Re4b1]} 24. Qa1 Bxg2) 24. Rd4 {[%emt 0:07:40]} Qc7 {[%emt 0:05:35]} 25. Qd1 {[%emt 0:05:53]} (25. a4 $11 {keeps the balance.}) 25... b5 $17 {[%emt 0:05:21]} 26. Nd2 {[%emt 0:00:36][%cal Od2f3]} e5 $36 {[%emt 0:02:35][%mdl 2048] Keeping White busy.} 27. Rd3 {[%emt 0:05:02]} Qc2 $1 {[%emt 0:02:56]} 28. Qxc2 {[%emt 0:02:05]} Rxc2 {[%emt 0:00:02]} 29. b3 {[%emt 0:00:08][%cal Og2g4]} h5 {[%emt 0:03:23]} 30. f3 {[%emt 0:00:19]} Kf8 {[%emt 0:02:05]} 31. Kf2 {[%emt 0:01:39]} Ke7 {[%emt 0:01:08][%cal Od5c4] Strongly threatening ...Bc4! Black is much more active.} (31... Bxb3 32. Rxb3 Rxd2+ 33. Ke1 $11) 32. h4 $2 {[%emt 0:02:08][%mdl 8192] [#]} (32. Be2 $17 {is a better chance.}) 32... Bc4 $1 {[%emt 0:01:11][%mdl 512] Weighted Error Value: White=0.33/Black=0.12 (very precise) .  Loses game:     	White=1     	---        Mistake:       	White=2     	Black=1      Inaccurate:     	White=2     	---        OK:         	White=10    	Black=10     Best:        	---       	Black=1      Strong:       	White=1     	Black=1      Brilliant:      	---       	Black=1} 0-1

[Event "Austrian Bundesliga 2023-24"]
[Site "Austria"]
[Date "2024.03.24"]
[Round "11.34"]
[White "Maghsoodloo, Parham"]
[Black "Froewis, Georg"]
[Result "1-0"]
[ECO "A13"]
[WhiteElo "2717"]
[BlackElo "2450"]
[Annotator "TA"]
[PlyCount "61"]
[EventDate "2023.10.21"]
[EventType "team-tourn"]
[EventCountry "AUT"]
[SourceTitle "playchess.com"]
[Source "ChessBase"]
[SourceQuality "1"]
[TimeControl "40/5400+30:1800+30"]

{[%evp 14,61,20,12,11,6,25,25,30,28,31,25,25,13,52,54,87,92,87,61,60,77,73,89,75,73,120,117,115,83,108,117,116,119,139,147,153,161,316,311,289,243,444,420,475,458,422,394,1208,1176]} 1. c4 {[%emt 0:00:04]} e6 {[%emt 0:00:04]} 2. Nc3 {[%emt 0:00:06]} d5 {[%emt 0:00:02]} 3. cxd5 {[%emt 0:00:07]} exd5 {[%emt 0:00:04]} 4. d4 {[%emt 0:00:11]} c6 {[%emt 0:00:04]} 5. Bf4 {[%emt 0:00:05]} Bd6 {[%emt 0:00:07]} 6. Bxd6 {[%emt 0:00:05]} Qxd6 {[%emt 0:00:04]} 7. e3 {[%emt 0:00:04]} Nf6 {[%emt 0:01:29]} 8. Bd3 {[%emt 0:00:20]} O-O {[%emt 0:01:10]} 9. h3 {[%emt 0:01:10]} Be6 {[%emt 0:06:02]} 10. Nge2 {[%emt 0:02:06]} Nbd7 {[%emt 0:00:14] White has an edge.} 11. O-O {[%emt 0:00:14]} Rfe8 {[%emt 0:01:56]} 12. Qd2 {[%emt 0:03:23]} Nf8 {[%emt 0:03:31]} 13. f3 {[%emt 0:01:40][%cal Bf2f3,Bf3f4,Bf4f5][%mdl 32]} Nh5 {[%emt 0:02:47]} 14. e4 {[%emt 0:28:44]} f6 {[%emt 0:01:50]} 15. f4 {[%emt 0:02:22] g4 would now be deadly.} dxe4 {[%emt 0:02:37]} 16. Nxe4 {[%emt 0:00:15]} Qc7 {[%emt 0:03:42]} 17. f5 {[%emt 0:01:46]} (17. Nc5 {simplifies} f5 18. Nxe6 Nxe6 19. Bxf5 Rad8 20. Rf3) 17... Bd5 {[%emt 0:00:25]} 18. N4c3 {[%emt 0:01:04] [#] And now Nxd5 would win.} Ng3 {[%emt 0:03:16]} 19. Nxd5 {[%emt 0:01:14]} Nxe2+ {[%emt 0:03:28]} (19... cxd5 $142 20. Nxg3 Qxg3) 20. Bxe2 $16 {[%emt 0:00:25]} cxd5 {[%emt 0:00:05]} 21. Bf3 $36 {[%emt 0:05:43][%mdl 2048] Black is under strong pressure.} Rad8 {[%emt 0:04:39]} 22. Rac1 {[%emt 0:02:38][%cal Ba1c1,Bc1c5,Bc5b5,Bb5b7,Bb7a7,Ba7a5][%mdl 32]} Qb6 {[%emt 0:00:02]} 23. a4 {[%emt 0:06:45]} Kh8 {[%emt 0:04:55]} 24. Rc5 {[%emt 0:04:22]} Qb3 {[%emt 0:02:38]} 25. Ra1 {[%emt 0:01:20]} Nd7 $2 {[%emt 0:04:53] [#]} (25... Re7 {was called for.} 26. Qc3 Qxc3 27. bxc3 Red7) 26. Rb5 $18 {[%emt 0:04:30]} ({Much less strong is} 26. Rxd5 $6 Nb6 27. Rb5 Qf7 $18) (26. Bxd5 Nxc5 27. Bxb3 Nxb3 $17) 26... Qc4 {[%emt 0:00:38]} 27. Rxb7 {[%emt 0:03:35]} ({Less strong is} 27. Rxd5 Nb6 28. Ra5 Rxd4 $18) 27... Nb6 $2 {[%emt 0:00:58]} (27... Qa6 28. Rb5 (28. Bxd5 Nc5 $16) 28... Nb6) 28. Rxa7 {[%emt 0:02:48]} Nc8 {[%emt 0:00:16]} 29. Ra5 {[%emt 0:02:21]} Ne7 {[%emt 0:02:28]} 30. Qc3 {[%emt 0:00:35]} Nc6 $2 {[%emt 0:01:41]} (30... Qxc3 31. bxc3 Kg8) 31. Qxc4 {[%emt 0:00:08] Weighted Error Value: White=0.06 (flawless) /Black=0.31.  Mistake:       	---       	Black=4      Inaccurate:     	---       	Black=2      OK:         	White=13    	Black=6      Best:        	White=1     	Black=2} 1-0

[Event "Austrian Bundesliga 2023-24"]
[Site "Austria"]
[Date "2024.03.24"]
[Round "11.35"]
[White "Steindl, Johannes"]
[Black "Vallejo Pons, Francisco"]
[Result "0-1"]
[ECO "B28"]
[WhiteElo "2302"]
[BlackElo "2653"]
[Annotator "TA"]
[PlyCount "52"]
[EventDate "2023.10.21"]
[EventType "team-tourn"]
[EventCountry "AUT"]
[SourceTitle "playchess.com"]
[Source "ChessBase"]
[SourceQuality "1"]
[TimeControl "40/5400+30:1800+30"]

{[%evp 10,52,29,29,24,26,31,36,26,43,44,29,43,18,14,31,6,0,12,-24,-25,-25,2,-58,-44,-54,-56,-110,-99,-104,-125,-135,-82,-381,-182,-171,-145,-225,-192,-443,-458,-486,-415,-470,-473]} 1. e4 {[%emt 0:00:02][%cal Be2e4,Be4e5][%mdl 32]} c5 {[%emt 0:01:16]} 2. Nf3 {[%emt 0:00:05]} a6 {[%emt 0:01:15]} 3. c3 {[%emt 0:00:26]} e6 {[%emt 0:00:29]} 4. d4 {[%emt 0:00:10]} d5 {[%emt 0:00:02]} 5. e5 {[%emt 0:00:06]} Nc6 {[%emt 0:00:17]} 6. Bd3 {[%emt 0:09:06]} Bd7 {[%emt 0:05:49]} 7. a3 {[%emt 0:02:47]} Qb6 {[%emt 0:09:51]} 8. dxc5 {[%emt 0:00:16]} Bxc5 {[%emt 0:07:55] White is slightly better.} 9. O-O {[%emt 0:00:04]} Qc7 {[%emt 0:03:29]} 10. Re1 {[%emt 0:06:24]} f6 {[%emt 0:03:59]} 11. Bf4 {[%emt 0:07:53] Black must now prevent exf6.} Nge7 {[%emt 0:05:03]} 12. Bg3 {[%emt 0:07:24] exf6 is the strong threat.} f5 {[%emt 0:03:22]} 13. Nbd2 {[%emt 0:02:36]} O-O {[%emt 0:02:21]} 14. b4 {[%emt 0:06:32]} Ba7 {[%emt 0:00:42]} 15. c4 {[%emt 0:00:03]} h6 {[%emt 0:10:08]} 16. h4 {[%emt 0:03:56]} (16. Rc1 $11) 16... Be8 {[%emt 0:04:06]} 17. Rc1 {[%emt 0:12:26]} Qd7 {[%emt 0:00:48]} 18. cxd5 {[%emt 0:00:21]} (18. Be2 $15) 18... Nxd5 $17 {[%emt 0:00:20]} 19. Nc4 {[%emt 0:00:09]} Bh5 {[%emt 0:02:47][%cal Og7g5] ...g5! would now be deadly.} 20. Be2 {[%emt 0:06:56]} Rad8 {[%emt 0:03:56] Black has more active pieces.} ({Black should try} 20... Qe7 {And now ...Bxf3 would win.} 21. Nd6 f4) 21. Rc2 $2 {[%emt 0:05:44][%mdl 8192] Loses the game.} (21. Nd6 $17) 21... Bxf3 {[%emt 0:10:06]} ({Resist} 21... f4 22. Bh2 $19) (21... Qe7 $142 22. Bd3 f4) 22. Bxf3 $19 {[%emt 0:00:16]} Nd4 {[%emt 0:00:03] aiming for ...f4. A dynamic duo of knights.} 23. Rc1 {[%emt 0:02:40]} (23. Nd6 $17) 23... Rc8 {[%emt 0:02:13] Threatens to win with ...Qd8.} 24. Bxd5 $2 {[%emt 0:02:06]} (24. Qd3) 24... Qxd5 {[%emt 0:00:29]} 25. Nd6 {[%emt 0:00:04]} Rxc1 {[%emt 0:03:02]} 26. Qxc1 {[%emt 0:00:15] [#]} f4 $1 {[%emt 0:00:43][%mdl 512] Weighted Error Value: White=0.54/Black=0.22 (precise) .  Loses game:     	White=1     	---        Mistake:       	White=4     	Black=2      Inaccurate:     	White=1     	Black=1      OK:         	White=6     	Black=8      Brilliant:      	---       	Black=1} 0-1

[Event "Austrian Bundesliga 2023-24"]
[Site "Austria"]
[Date "2024.03.24"]
[Round "11.36"]
[White "Bacrot, Etienne"]
[Black "Helmer, Christoph"]
[Result "1-0"]
[ECO "B52"]
[WhiteElo "2680"]
[BlackElo "2198"]
[Annotator "TA"]
[PlyCount "85"]
[EventDate "2023.10.21"]
[EventType "team-tourn"]
[EventCountry "AUT"]
[SourceTitle "playchess.com"]
[Source "ChessBase"]
[SourceQuality "1"]
[TimeControl "40/5400+30:1800+30"]

{[%evp 21,85,13,17,29,35,0,3,19,25,18,21,18,25,16,29,22,57,37,26,39,56,26,20,22,29,16,13,11,16,0,3,4,46,23,28,27,18,0,0,0,0,8,0,0,94,100,91,97,109,107,99,97,165,159,159,165,143,162,156,58,204,205,292,284,249,176]} 1. e4 {[%emt 0:00:08]} c5 {[%emt 0:04:56]} 2. Nf3 {[%emt 0:00:06]} d6 {[%emt 0:00:05]} 3. Bb5+ {[%emt 0:00:04]} Bd7 {[%emt 0:00:05]} 4. Bxd7+ {[%emt 0:00:07]} Qxd7 {[%emt 0:00:04]} 5. c4 {[%emt 0:00:06]} Nf6 {[%emt 0:00:21]} 6. Nc3 {[%emt 0:00:07]} Nc6 {[%emt 0:00:24]} 7. d4 {[%emt 0:06:03]} cxd4 {[%emt 0:00:14]} 8. Nxd4 {[%emt 0:00:04]} g6 {[%emt 0:00:08]} 9. f3 {[%emt 0:00:22]} Bg7 {[%emt 0:02:39]} 10. Be3 {[%emt 0:00:10]} O-O {[%emt 0:00:31]} 11. O-O {[%emt 0:00:05]} a6 {[%emt 0:07:35]} 12. Qd3 {[%emt 0:00:38]} Rab8 {[%emt 0:04:42]} 13. a4 {[%emt 0:14:32]} Qc7 {[%emt 0:19:07]} 14. b3 {[%emt 0:06:46] The position is equal.} Nd7 {[%emt 0:04:40] ...Nc5 is the strong threat.} 15. Rab1 {[%emt 0:00:15]} Qa5 {[%emt 0:12:50]} 16. Rfd1 {[%emt 0:09:54]} Rfe8 {[%emt 0:06:20]} 17. Nde2 {[%emt 0:05:46]} h5 {[%emt 0:06:59]} 18. Qd2 {[%emt 0:02:51]} h4 {[%emt 0:04:38]} 19. Nd5 {[%emt 0:06:37]} Qxd2 {[%emt 0:05:33]} 20. Rxd2 {[%emt 0:00:12]} Nce5 {[%emt 0:03:22]} 21. h3 {[%emt 0:07:29]} Kh7 {[%emt 0:00:31]} 22. Rdd1 {[%emt 0:07:10]} Bh6 {[%emt 0:02:47] Prevents Bg5} 23. Ba7 {[%emt 0:04:06]} Rbc8 {[%emt 0:00:22]} 24. Bf2 {[%emt 0:00:18]} g5 {[%emt 0:00:28]} 25. Ne3 {[%emt 0:00:07][%cal Bd5e3,Be3f5,Bf5h4,Bh4f3][%mdl 32]} Bf8 {[%emt 0:00:52]} 26. Nf5 {[%emt 0:01:19]} Rc6 {[%emt 0:00:24]} 27. f4 {[%emt 0:02:16]} gxf4 {[%emt 0:01:36]} 28. Nxf4 {[%emt 0:00:11][%cal Of4d3]} e6 {[%emt 0:00:22]} 29. Nxh4 {[%emt 0:04:36]} Nf6 $1 {[%emt 0:00:27]} 30. Rd4 {[%emt 0:02:24]} Bh6 {[%emt 0:00:50]} 31. Ne2 $36 {[%emt 0:00:34][%mdl 2048] White has some pressure.} Rg8 {[%emt 0:01:08]} 32. Kf1 {[%emt 0:02:01]} Rb8 {[%emt 0:01:29]} (32... Ned7 $11) 33. Nf3 $16 {[%emt 0:05:33]} b5 {[%emt 0:00:21]} 34. cxb5 {[%emt 0:01:42]} axb5 {[%emt 0:00:05]} 35. Nxe5 {[%emt 0:01:01]} dxe5 {[%emt 0:00:05]} 36. Rb4 {[%emt 0:00:03]} Rcc8 {[%emt 0:00:59]} (36... Rc7 $16 {might work better.}) 37. axb5 $18 {[%emt 0:00:59]} ({Inferior is} 37. Rxb5 Rxb5 38. axb5 Nxe4 $11) 37... Bf8 {[%emt 0:00:06]} 38. Rc4 {[%emt 0:01:36]} Rxc4 {[%emt 0:00:07]} 39. bxc4 {[%emt 0:00:04]} Nxe4 {[%emt 0:00:05]} 40. Be3 {[%emt 0:00:00] Prevents Nd2+.} (40. Be1 $1 $16) 40... Bc5 {[%emt 0:00:00] [#]} ({Better is} 40... Rd8 $1 $14) 41. Bxc5 $1 {[%emt 0:02:25]} ({And not} 41. Rb3 Bxe3 42. Rxe3 Nd2+ 43. Kf2 Nxc4 $11) 41... Nd2+ {[%emt 0:04:21]} (41... Nxc5 {keeps fighting.} 42. b6 Ne4) 42. Ke1 {[%emt 0:03:34]} Nxb1 {[%emt 0:00:06] [#]} 43. Bb4 $1 {Weighted Error Value: White=0.09 (flawless) /Black=0.22 (precise) .  Mistake:       	White=1     	Black=4      Inaccurate:     	White=2     	Black=2      OK:         	White=14    	Black=13     Best:        	White=2     	Black=1      Strong:       	White=1     	Black=1} 1-0